bitfinex/quotes_ETHUSD_20230110
["timestamp","ask_amount","ask_price","bid_price","bid_amount"]
[1673332019056,1.6902221,1326.0,1325.9,17.01830944]
[1673332020830,3.94385157,1326.0,1325.9,15.14671559]
[1673332021052,1.6902221,1326.0,1325.9,7.60467559]
[1673332021270,3.94385157,1326.0,1325.9,7.60467559]
[1673332021511,1.6902221,1326.0,1325.9,0.066]
[1673332021756,2.93256903,1326.0,1325.8,0.066]
[1673332021929,2.93256903,1326.0,1325.7,13.98831465]
[1673332021930,2.8228437,1325.9,1325.7,13.98831465]
[1673332022141,2.8228437,1325.9,1325.8,1.87171466]
[1673332023220,1.12913748,1325.9,1325.7,15.11957931]
[1673332023380,1.12913748,1325.9,1325.8,1.87171466]
[1673332024345,1.12913748,1325.9,1325.8,1.86807169]
[1673332024983,1.17913748,1325.9,1325.8,1.86807169]
[1673332025692,0.05,1325.9,1325.8,16.95329169]
[1673332025925,0.05,1325.9,1325.8,17.01929169]
[1673332026129,1.17913748,1325.9,1325.8,17.01929169]
[1673332027181,0.05,1325.9,1325.8,17.01929169]
[1673332027392,0.05,1325.9,1325.8,20.2085108]
[1673332027732,1.17913748,1325.9,1325.8,20.2085108]
[1673332027941,0.05,1325.9,1325.8,20.2085108]
[1673332028130,0.05,1325.9,1325.8,21.33598729]
[1673332028327,0.05,1325.9,1325.8,28.87859729]
[1673332028969,1.12913748,1326.0,1325.8,28.87859729]
[1673332029320,1.12913748,1326.0,1325.8,27.0105256]
[1673332031273,2.8228437,1326.0,1325.8,27.0105256]
[1673332031737,1.12913748,1326.0,1325.8,27.0105256]
[1673332031947,2.8228437,1326.0,1325.8,23.82130649]
[1673332032263,2.8228437,1326.0,1325.8,15.15122]
[1673332032420,2.8228437,1326.0,1325.8,16.27869649]
[1673332032889,2.8228437,1326.0,1325.8,15.15122]
[1673332033681,2.8228437,1326.0,1325.8,16.27869649]
[1673332034200,2.8228437,1326.0,1325.8,15.15122]
[1673332034336,1.12913748,1325.9,1325.8,15.15122]
[1673332034780,1.12913748,1325.9,1325.8,7.60861]
[1673332035157,1.17913748,1325.9,1325.8,7.60861]
[1673332035364,1.12913748,1326.0,1325.8,8.73608649]
[1673332036037,1.12913748,1326.0,1325.8,16.27869649]
[1673332036362,1.12913748,1326.0,1325.8,23.82130649]
[1673332037915,2.8228437,1326.0,1325.8,23.82130649]
[1673332039412,1.12913748,1326.0,1325.8,23.82130649]
[1673332040846,2.8228437,1326.0,1325.8,23.82130649]
[1673332041057,1.12913748,1326.0,1325.8,23.82130649]
[1673332041754,1.12913748,1326.0,1325.8,23.81930649]
[1673332041755,2.8248437,1326.0,1325.8,23.81930649]
[1673332041899,2.8228437,1326.0,1325.8,23.82130649]
[1673332042324,1.12913748,1326.0,1325.8,23.82130649]
[1673332042744,1.12913748,1326.0,1325.9,1.12747649]
[1673332042994,3.39253155,1326.1,1325.9,1.12747649]
[1673332043149,5.28936238,1326.1,1325.9,7.54173]
[1673332043362,5.31636238,1326.1,1325.9,8.73520649]
[1673332043750,5.31636238,1326.1,1325.9,7.60773]
[1673332043881,4.75056238,1326.1,1325.9,7.60773]
[1673332044091,4.72356238,1326.1,1325.9,7.60773]
[1673332048614,4.72356238,1326.1,1325.9,7.60460909]
[1673332048865,4.72356238,1326.1,1325.9,15.14664909]
[1673332050304,1.12913748,1326.0,1325.9,15.14664909]
[1673332050525,1.12913748,1326.0,1325.9,17.0181374]
[1673332050717,1.12913748,1326.0,1325.9,17.01816846]
[1673332051564,2.8228437,1326.0,1325.9,0.066]
[1673332051869,3.3335798,1326.0,1325.8,15.15089]
[1673332052097,2.8228437,1326.0,1325.8,15.15089]
[1673332052541,2.8228437,1326.0,1325.8,0.066]
[1673332052542,8.32150434,1326.0,1325.8,0.066]
[1673332052762,8.32150434,1326.0,1325.7,0.066]
[1673332052763,16.60781226,1325.9,1325.7,0.066]
[1673332052974,26.57987476,1325.8,1325.6,0.08441756]
[1673332053162,26.57987476,1325.8,1325.7,1.87195357]
[1673332053163,26.45249064,1325.8,1325.7,1.87195357]
[1673332053547,28.14488321,1325.8,1325.6,0.15041756]
[1673332053804,2.84027376,1325.7,1325.6,0.08441756]
[1673332053981,6.3341418,1325.7,1325.6,0.08441756]
[1673332054180,5.23286804,1325.7,1325.6,0.08441756]
[1673332055707,12.77604804,1325.7,1325.6,0.08441756]
[1673332056210,12.77993589,1325.7,1325.6,0.08441756]
[1673332056629,5.23675589,1325.7,1325.6,0.08441756]
[1673332058385,38.25230841,1325.7,1325.6,0.08441756]
[1673332058957,39.94470098,1325.7,1325.6,0.08441756]
[1673332060273,38.25230841,1325.7,1325.6,0.08441756]
[1673332061917,39.94470098,1325.7,1325.6,0.08441756]
[1673332062443,38.25230841,1325.7,1325.6,0.08441756]
[1673332065651,41.65670098,1325.7,1325.6,0.08441756]
[1673332065862,41.09432722,1325.7,1325.6,0.08441756]
[1673332066177,42.21830111,1325.7,1325.6,0.08441756]
[1673332066537,41.09432722,1325.7,1325.6,0.08441756]
[1673332067175,42.21823436,1325.7,1325.6,0.08441756]
[1673332067391,41.09432722,1325.7,1325.6,0.08441756]
[1673332067870,42.21821217,1325.7,1325.6,0.08441756]
[1673332068331,52.21931217,1325.7,1325.6,0.08441756]
[1673332068856,50.5269196,1325.7,1325.6,0.08441756]
[1673332069011,52.21931217,1325.7,1325.6,0.08441756]
[1673332070160,50.5269196,1325.7,1325.6,0.08441756]
[1673332071485,52.21931217,1325.7,1325.6,0.08441756]
[1673332071635,50.5269196,1325.7,1325.6,0.08441756]
[1673332073227,50.5269196,1325.7,1325.6,0.08155738]
[1673332073646,50.7569196,1325.7,1325.6,0.08155738]
[1673332073840,52.44931217,1325.7,1325.6,0.08155738]
[1673332074313,50.7569196,1325.7,1325.6,0.08155738]
[1673332074888,52.44931217,1325.7,1325.6,0.08155738]
[1673332075096,50.7569196,1325.7,1325.6,0.08155738]
[1673332076576,40.7558196,1325.7,1325.6,0.08155738]
[1673332077000,42.44821217,1325.7,1325.6,0.08155738]
[1673332077205,48.8663196,1325.7,1325.6,0.08155738]
[1673332077678,50.55871217,1325.7,1325.6,0.08155738]
[1673332077834,40.73621217,1325.7,1325.6,0.08155738]
[1673332078044,39.0438196,1325.7,1325.6,0.08155738]
[1673332078464,48.8663196,1325.7,1325.6,0.08155738]
[1673332079250,39.0438196,1325.7,1325.6,0.08155738]
[1673332079565,11.63639465,1325.7,1325.6,0.08155738]
[1673332080091,7.88831653,1325.7,1325.6,0.08155738]
[1673332080252,30.51785653,1325.7,1325.6,0.08155738]
[1673332080462,34.26593465,1325.7,1325.6,0.08155738]
[1673332083300,35.3898196,1325.7,1325.6,0.08155738]
[1673332083509,34.26593465,1325.7,1325.6,0.08155738]
[1673332083727,18.61367465,1325.7,1325.6,0.08155738]
[1673332083960,14.86559653,1325.7,1325.6,0.08155738]
[1673332084410,22.40877653,1325.7,1325.6,0.08155738]
[1673332087185,23.53266148,1325.7,1325.6,0.08155738]
[1673332090241,25.22505405,1325.7,1325.6,0.08155738]
[1673332092255,24.1011691,1325.7,1325.6,0.08155738]
[1673332092677,1.15375043,1325.7,1325.6,16.16105738]
[1673332092859,1.15375043,1325.8,1325.6,19.63805738]
[1673332093072,1.12675043,1325.8,1325.6,21.68565671]
[1673332093319,1.12675043,1325.8,1325.6,9.668255]
[1673332094434,1.12675043,1325.8,1325.6,5.92165567]
[1673332095384,8.66942043,1325.8,1325.7,1.697]
[1673332095596,8.69642043,1325.8,1325.7,1.697]
[1673332096398,8.69642043,1325.8,1325.7,2.05265574]
[1673332096871,1.15375043,1325.8,1325.7,2.05265574]
[1673332097067,1.12675043,1325.8,1325.7,2.05265574]
[1673332100451,1.12675043,1325.8,1325.7,0.35565574]
[1673332101266,1.17675043,1325.8,1325.7,0.35565574]
[1673332102370,0.05,1325.8,1325.7,0.35565574]
[1673332102732,1.17675043,1325.8,1325.7,0.35565574]
[1673332103471,1.12675043,1325.8,1325.7,0.35565574]
[1673332104054,8.66936043,1325.8,1325.6,1.79355738]
[1673332104222,25.473973,1325.8,1325.6,0.08155738]
[1673332106151,29.27163364,1325.8,1325.6,0.08155738]
[1673332106319,1.12675043,1325.7,1325.6,0.08155738]
[1673332106536,16.21311043,1325.7,1325.6,0.08155738]
[1673332106743,16.24011043,1325.7,1325.6,0.08155738]
[1673332108996,26.71056779,1325.7,1325.6,0.08155738]
[1673332109152,28.40296036,1325.7,1325.6,0.07816973]
[1673332109358,26.71056779,1325.7,1325.6,0.07816973]
[1673332109572,28.40296036,1325.7,1325.6,0.07816973]
[1673332110734,20.85978036,1325.7,1325.6,0.07816973]
[1673332111395,17.932503,1325.7,1325.6,0.07816973]
[1673332111605,16.24011043,1325.7,1325.6,0.07816973]
[1673332111818,17.932503,1325.7,1325.6,0.07816973]
[1673332116305,16.80575257,1325.7,1325.6,0.07816973]
[1673332116513,17.93276782,1325.7,1325.6,0.07816973]
[1673332117470,21.3680182,1325.7,1325.6,0.07816973]
[1673332117931,20.24100295,1325.7,1325.6,0.07816973]
[1673332118554,22.49752638,1325.7,1325.6,0.07816973]
[1673332119300,20.24100295,1325.7,1325.6,0.07816973]
[1673332119606,22.49752638,1325.7,1325.6,0.07816973]
[1673332120153,30.04070638,1325.7,1325.6,0.07816973]
[1673332120868,27.78418295,1325.7,1325.6,0.07816973]
[1673332121399,30.04070638,1325.7,1325.6,0.07816973]
[1673332121758,20.24100295,1325.7,1325.6,0.07816973]
[1673332122026,22.54752638,1325.7,1325.6,0.07816973]
[1673332122934,20.29100295,1325.7,1325.6,0.07816973]
[1673332123548,5.20464295,1325.7,1325.6,0.07816973]
[1673332123756,1.76939257,1325.7,1325.6,0.07816973]
[1673332123967,1.74239257,1325.7,1325.6,0.07816973]
[1673332125868,1.69239257,1325.7,1325.6,0.07816973]
[1673332126084,9.23557257,1325.7,1325.6,0.07816973]
[1673332126302,9.26257257,1325.7,1325.6,0.07816973]
[1673332127328,16.80575257,1325.7,1325.6,0.07816973]
[1673332129589,17.93323811,1325.7,1325.6,0.07816973]
[1673332130025,16.80575257,1325.7,1325.6,0.07816973]
[1673332130974,17.93328671,1325.7,1325.6,0.07816973]
[1673332131180,10.39010671,1325.7,1325.6,0.07816973]
[1673332132425,9.26257257,1325.7,1325.6,0.07816973]
[1673332133415,10.39013256,1325.7,1325.6,0.07816973]
[1673332134351,28.63213242,1325.7,1325.6,0.07816973]
[1673332134723,30.88865585,1325.7,1325.6,0.07816973]
[1673332135465,30.88865585,1325.7,1325.6,0.07577622]
[1673332136273,34.73631649,1325.7,1325.6,0.07577622]
[1673332138189,33.04392392,1325.7,1325.6,0.07577622]
[1673332138455,32.99392392,1325.7,1325.6,0.07577622]
[1673332139957,34.68615909,1325.7,1325.6,0.07577622]
[1673332140405,32.99392392,1325.7,1325.6,0.07577622]
[1673332141653,34.68647206,1325.7,1325.6,0.07577622]
[1673332142228,32.99392392,1325.7,1325.6,0.07577622]
[1673332142391,33.04392392,1325.7,1325.6,0.07577622]
[1673332144400,32.99392392,1325.7,1325.6,0.07577622]
[1673332144620,35.86246795,1325.7,1325.6,0.07577622]
[1673332146169,39.60905158,1325.7,1325.6,0.07577622]
[1673332146432,37.35252815,1325.7,1325.6,0.07577622]
[1673332146646,34.48398412,1325.7,1325.6,0.07577622]
[1673332146864,35.04988412,1325.7,1325.6,0.07577622]
[1673332147030,40.15314045,1325.7,1325.6,0.07577622]
[1673332149583,36.76188412,1325.7,1325.6,0.07577622]
[1673332151164,40.15314045,1325.7,1325.6,0.07577622]
[1673332151897,49.54114045,1325.7,1325.6,0.07577622]
[1673332152700,46.14988412,1325.7,1325.6,0.07577622]
[1673332153549,49.54114045,1325.7,1325.6,0.07577622]
[1673332153790,46.14988412,1325.7,1325.6,0.07577622]
[1673332156547,49.54114045,1325.7,1325.6,0.07577622]
[1673332156859,46.14988412,1325.7,1325.6,0.07577622]
[1673332157494,49.54114045,1325.7,1325.6,0.07577622]
[1673332157889,49.54114045,1325.7,1325.6,0.07193166]
[1673332162940,46.14988412,1325.7,1325.6,0.06276606]
[1673332163154,49.530144,1325.7,1325.6,0.06276606]
[1673332164064,46.14988412,1325.7,1325.6,0.06276606]
[1673332164428,49.53009808,1325.7,1325.6,0.06276606]
[1673332166951,49.76009808,1325.7,1325.6,0.06276606]
[1673332168843,51.47209808,1325.7,1325.6,0.06276606]
[1673332172807,51.47209808,1325.7,1325.6,0.05478432]
[1673332173133,56.02888412,1325.7,1325.5,0.34389969]
[1673332173342,39.75687643,1325.6,1325.5,0.34389969]
[1673332173563,47.32251194,1325.6,1325.5,0.34389969]
[1673332173733,2.5,1325.5,1325.4,0.1523342]
[1673332173944,20.63439593,1325.5,1325.2,0.1523342]
[1673332174262,34.1462736,1325.3,1325.2,0.1523342]
[1673332174466,45.40753169,1325.3,1325.2,0.1523342]
[1673332174713,44.28074607,1325.3,1325.2,0.1523342]
[1673332175351,48.02882419,1325.3,1325.2,0.1523342]
[1673332177039,48.03271204,1325.3,1325.2,0.1523342]
[1673332177256,46.34395565,1325.3,1325.2,0.1523342]
[1673332177461,44.28435247,1325.3,1325.2,0.1523342]
[1673332178375,48.03243059,1325.3,1325.2,0.1523342]
[1673332178817,42.03191887,1325.3,1325.2,0.1523342]
[1673332179201,44.28435247,1325.3,1325.2,0.1523342]
[1673332179461,48.03243059,1325.3,1325.2,0.1523342]
[1673332180051,44.28435247,1325.3,1325.2,0.1523342]
[1673332180797,42.03191887,1325.3,1325.2,0.1523342]
[1673332180980,48.03243059,1325.3,1325.2,0.1523342]
[1673332181191,42.03191887,1325.3,1325.2,0.1523342]
[1673332181837,48.03243059,1325.3,1325.2,0.1523342]
[1673332185663,51.03243059,1325.3,1325.2,0.1523342]
[1673332185833,49.91005565,1325.3,1325.2,0.1523342]
[1673332187729,51.59879849,1325.3,1325.2,0.1523342]
[1673332188167,45.59828677,1325.3,1325.2,0.1523342]
[1673332188384,38.05282677,1325.3,1325.2,0.1523342]
[1673332189664,13.14167043,1325.3,1325.2,0.1523342]
[1673332190031,20.68713043,1325.3,1325.2,0.1523342]
[1673332190445,27.66649043,1325.3,1325.2,0.1523342]
[1673332190777,24.73417783,1325.3,1325.2,0.1523342]
[1673332191653,23.04543499,1325.3,1325.2,0.1523342]
[1673332192440,20.04154714,1325.3,1325.2,0.1523342]
[1673332192650,4.95062714,1325.3,1325.2,0.1523342]
[1673332192903,5.48972714,1325.3,1325.2,0.1523342]
[1673332193126,13.06218714,1325.3,1325.2,0.1523342]
[1673332193292,27.58700714,1325.3,1325.2,0.1523342]
[1673332193507,32.90475714,1325.3,1325.2,0.1523342]
[1673332193967,34.59349998,1325.3,1325.2,0.1523342]
[1673332194907,33.46753348,1325.3,1325.2,0.1523342]
[1673332195283,35.71996708,1325.3,1325.2,0.1523342]
[1673332195699,41.18117506,1325.3,1325.2,0.1523342]
[1673332196022,39.49130236,1325.3,1325.2,0.1523342]
[1673332196225,40.06129021,1325.3,1325.2,0.1523342]
[1673332197061,38.00331586,1325.3,1325.2,0.1523342]
[1673332197379,33.47278226,1325.3,1325.2,0.1523342]
[1673332197588,33.47278226,1325.3,1325.2,0.14961658]
[1673332197829,34.59956292,1325.3,1325.2,0.14961658]
[1673332198234,33.47278226,1325.3,1325.2,0.14961658]
[1673332198994,35.72521586,1325.3,1325.2,0.14961658]
[1673332200634,33.47278226,1325.3,1325.2,0.14961658]
[1673332200850,35.72521586,1325.3,1325.2,0.14961658]
[1673332201842,25.92732226,1325.3,1325.2,0.14961658]
[1673332201996,33.47278226,1325.3,1325.2,0.14961658]
[1673332202207,35.72521586,1325.3,1325.2,0.14961658]
[1673332204200,36.8506541,1325.3,1325.2,0.14961658]
[1673332204410,40.59873222,1325.3,1325.2,0.14961658]
[1673332205771,40.59873222,1325.3,1325.2,0.04961658]
[1673332207239,51.43621355,1325.3,1325.2,0.04961658]
[1673332208065,54.25482146,1325.3,1325.2,0.04961658]
[1673332208672,52.54282146,1325.3,1325.2,0.04961658]
[1673332209730,49.72421355,1325.3,1325.2,0.04961658]
[1673332209942,52.54324587,1325.3,1325.2,0.04961658]
[1673332211812,44.99778587,1325.3,1325.2,0.04961658]
[1673332212023,52.54324587,1325.3,1325.2,0.04961658]
[1673332212713,49.72421355,1325.3,1325.2,0.04961658]
[1673332213019,52.54467862,1325.3,1325.2,0.04961658]
[1673332214597,44.61267862,1325.3,1325.2,0.04961658]
[1673332214752,44.38267862,1325.3,1325.2,0.04961658]
[1673332216542,40.6346005,1325.3,1325.2,0.04961658]
[1673332216804,40.0685005,1325.3,1325.2,0.04961658]
[1673332217001,34.02607058,1325.3,1325.2,0.04961658]
[1673332217847,41.57153058,1325.3,1325.2,0.04961658]
[1673332218807,39.85953058,1325.3,1325.2,0.04961658]
[1673332219021,37.03906551,1325.3,1325.2,0.04961658]
[1673332219230,7.77345474,1325.3,1325.2,0.04961658]
[1673332219419,5.51706772,1325.3,1325.2,7.59564658]
[1673332219631,6.64572087,1325.3,1325.2,7.66164658]
[1673332219961,2.84806023,1325.3,1325.2,1.65435856]
[1673332220179,1.12865315,1325.3,1325.2,0.04961658]
[1673332221217,8.67411315,1325.3,1325.2,0.04961658]
[1673332221431,8.70111315,1325.3,1325.2,0.04961658]
[1673332221807,10.39352023,1325.3,1325.2,0.04961658]
[1673332224446,17.93898023,1325.3,1325.2,0.04961658]
[1673332226459,10.39352023,1325.3,1325.2,0.04961658]
[1673332226674,8.70111315,1325.3,1325.2,0.04961658]
[1673332226909,10.39352023,1325.3,1325.2,0.04961658]
[1673332227124,8.70111315,1325.3,1325.2,0.04961658]
[1673332235224,1.15565315,1325.3,1325.2,0.04961658]
[1673332235381,1.12865315,1325.3,1325.2,0.04961658]
[1673332235956,17.94228808,1325.4,1325.2,0.04961658]
[1673332236269,21.73994872,1325.4,1325.2,0.04961658]
[1673332237954,20.04754164,1325.4,1325.2,0.04961658]
[1673332239316,21.73994872,1325.4,1325.2,0.04961658]
[1673332239896,20.04754164,1325.4,1325.2,0.04961658]
[1673332241049,1.12865315,1325.3,1325.2,0.04961658]
[1673332241331,8.67411315,1325.3,1325.2,0.04961658]
[1673332241486,8.70111315,1325.3,1325.2,0.04961658]
[1673332247090,1.15565315,1325.3,1325.2,0.04961658]
[1673332247301,1.13065315,1325.3,1325.2,0.04961658]
[1673332247519,1.12865315,1325.3,1325.2,0.04961658]
[1673332248179,8.67411315,1325.3,1325.2,0.04961658]
[1673332248311,8.70111315,1325.3,1325.2,0.04961658]
[1673332254607,10.39352023,1325.3,1325.2,0.04961658]
[1673332256302,17.93898023,1325.3,1325.2,0.04961658]
[1673332256500,16.81032708,1325.3,1325.2,0.04961658]
[1673332256706,19.0667141,1325.3,1325.2,0.04961658]
[1673332258002,27.05185151,1325.3,1325.2,0.04961658]
[1673332258194,32.90490443,1325.3,1325.2,0.04564166]
[1673332258862,35.7253695,1325.3,1325.2,0.04564166]
[1673332259545,32.90490443,1325.3,1325.2,0.04564166]
[1673332264012,25.35944443,1325.3,1325.2,0.04564166]
[1673332264902,27.05287463,1325.3,1325.2,0.04564166]
[1673332266160,36.2914695,1325.3,1325.2,0.04564166]
[1673332266472,34.03508248,1325.3,1325.2,0.04564166]
[1673332266681,39.29242217,1325.3,1325.2,0.04564166]
[1673332267260,37.03508248,1325.3,1325.2,0.04564166]
[1673332267519,39.29247385,1325.3,1325.2,0.04564166]
[1673332267892,37.03508248,1325.3,1325.2,0.04564166]
[1673332268100,39.29194181,1325.3,1325.2,0.04564166]
[1673332268342,37.03508248,1325.3,1325.2,0.04564166]
[1673332268549,39.29188124,1325.3,1325.2,0.04564166]
[1673332268764,37.03508248,1325.3,1325.2,0.04564166]
[1673332270466,39.29138802,1325.3,1325.2,0.04564166]
[1673332270615,39.29140065,1325.3,1325.2,0.04564166]
[1673332271039,37.03508248,1325.3,1325.2,0.04564166]
[1673332271250,39.29134797,1325.3,1325.2,0.04564166]
[1673332271511,39.29126673,1325.3,1325.2,0.04564166]
[1673332272091,37.03508248,1325.3,1325.2,0.04564166]
[1673332272297,39.29105157,1325.3,1325.2,0.04564166]
[1673332273875,37.26508248,1325.3,1325.2,0.04564166]
[1673332275488,38.97708248,1325.3,1325.2,0.04564166]
[1673332277344,39.73043942,1325.3,1325.2,0.04564166]
[1673332278241,39.73043942,1325.3,1325.2,0.04182096]
[1673332278668,45.05092668,1325.3,1325.1,0.1796332]
[1673332278975,35.73503019,1325.2,1325.1,0.1796332]
[1673332279165,40.4525805,1325.2,1325.1,0.1796332]
[1673332279344,41.20593744,1325.2,1325.1,0.1796332]
[1673332279824,44.20593744,1325.2,1325.1,0.1796332]
[1673332280396,46.68978096,1325.2,1325.1,0.1796332]
[1673332281973,44.43593744,1325.2,1325.1,0.1796332]
[1673332282225,46.68971082,1325.2,1325.1,0.1796332]
[1673332282763,46.69359867,1325.2,1325.1,0.1796332]
[1673332284389,45.94024173,1325.2,1325.1,0.1796332]
[1673332285019,43.12216218,1325.2,1325.1,0.1796332]
[1673332285265,45.94024173,1325.2,1325.1,0.1796332]
[1673332285756,43.12216218,1325.2,1325.1,0.1796332]
[1673332285968,45.94024173,1325.2,1325.1,0.1796332]
[1673332286223,43.12216218,1325.2,1325.1,0.1796332]
[1673332287653,46.69359867,1325.2,1325.1,0.1796332]
[1673332288012,44.43982529,1325.2,1325.1,0.1796332]
[1673332289268,46.69253027,1325.2,1325.1,0.1796332]
[1673332290286,44.43982529,1325.2,1325.1,0.1796332]
[1673332294602,41.62174574,1325.2,1325.1,0.1796332]
[1673332295113,44.4375936,1325.2,1325.1,0.1796332]
[1673332295324,41.62174574,1325.2,1325.1,0.1796332]
[1673332299894,44.43853727,1325.2,1325.1,0.1796332]
[1673332300483,48.18661539,1325.2,1325.1,0.1796332]
[1673332302251,45.36982386,1325.2,1325.1,0.1796332]
[1673332302944,48.18655529,1325.2,1325.1,0.1796332]
[1673332303556,48.18655529,1325.2,1325.1,0.17675116]
[1673332303976,45.36982386,1325.2,1325.1,0.17675116]
[1673332304187,48.1871783,1325.2,1325.1,0.17675116]
[1673332305782,48.74848103,1325.2,1325.1,0.17675116]
[1673332307564,45.36982386,1325.2,1325.1,0.17675116]
[1673332310774,48.74848103,1325.2,1325.1,0.17675116]
[1673332310984,45.36982386,1325.2,1325.1,0.17675116]
[1673332311299,48.74848103,1325.2,1325.1,0.17675116]
[1673332315801,47.03648103,1325.2,1325.1,0.17675116]
[1673332320521,48.74848103,1325.2,1325.1,0.17675116]
[1673332327779,48.74848103,1325.2,1325.1,0.17402236]
[1673332329296,45.00040291,1325.2,1325.1,0.17402236]
[1673332329459,41.62174574,1325.2,1325.1,0.17402236]
[1673332331398,44.44258553,1325.2,1325.1,0.17402236]
[1673332332222,41.62174574,1325.2,1325.1,0.17402236]
[1673332332428,44.44264876,1325.2,1325.1,0.17402236]
[1673332333064,47.82130593,1325.2,1325.1,0.17402236]
[1673332334287,50.81602711,1325.2,1325.1,0.17402236]
[1673332340387,49.11302711,1325.2,1325.1,0.17402236]
[1673332342812,45.73436994,1325.2,1325.1,0.17402236]
[1673332343034,49.69083566,1325.2,1325.1,0.17402236]
[1673332343459,45.73436994,1325.2,1325.1,0.17402236]
[1673332344929,49.69083566,1325.2,1325.1,0.17402236]
[1673332345144,45.73436994,1325.2,1325.1,0.17402236]
[1673332346212,49.69083566,1325.2,1325.1,0.17402236]
[1673332347002,45.73436994,1325.2,1325.1,0.17402236]
[1673332348474,46.48772688,1325.2,1325.1,0.17402236]
[1673332348927,49.87104896,1325.2,1325.1,0.17402236]
[1673332350098,62.9041926,1325.2,1325.1,0.14709463]
[1673332350623,64.6011926,1325.2,1325.1,0.14709463]
[1673332354791,60.64472688,1325.2,1325.1,0.14709463]
[1673332355618,64.6011926,1325.2,1325.1,0.14709463]
[1673332355992,60.64472688,1325.2,1325.1,0.14709463]
[1673332357133,64.02531943,1325.2,1325.1,0.14709463]
[1673332360073,60.27724131,1325.2,1325.1,0.14709463]
[1673332360291,64.02531943,1325.2,1325.1,0.14709463]
[1673332360597,61.55996249,1325.2,1325.1,0.14709463]
[1673332361925,62.31331943,1325.2,1325.1,0.14709463]
[1673332362762,61.74711943,1325.2,1325.1,0.14709463]
[1673332365429,58.36652688,1325.2,1325.1,0.1244235]
[1673332366888,61.74689991,1325.2,1325.1,0.1244235]
[1673332367078,58.36652688,1325.2,1325.1,0.1244235]
[1673332367306,61.74690791,1325.2,1325.1,0.1244235]
[1673332368324,49.31347285,1325.2,1325.1,0.1244235]
[1673332368534,37.79889845,1325.2,1325.1,0.1244235]
[1673332368790,41.17927948,1325.2,1325.1,0.1244235]
[1673332369004,44.9273576,1325.2,1325.1,0.1244235]
[1673332371497,41.17927948,1325.2,1325.1,0.1244235]
[1673332372463,44.9273576,1325.2,1325.1,0.1244235]
[1673332372639,48.26196549,1325.2,1325.1,0.1244235]
[1673332372966,59.94204361,1325.2,1325.1,0.1244235]
[1673332373165,56.56166258,1325.2,1325.1,0.1244235]
[1673332374062,48.26308361,1325.2,1325.1,0.1244235]
[1673332375173,43.73508361,1325.2,1325.1,0.1244235]
[1673332375423,36.6523976,1325.2,1325.1,0.1244235]
[1673332376649,29.1063676,1325.2,1325.1,0.1244235]
[1673332377591,25.72486845,1325.2,1325.1,0.1244235]
[1673332378442,33.27089845,1325.2,1325.1,0.1244235]
[1673332381409,36.6523976,1325.2,1325.1,0.1244235]
[1673332381619,42.73673104,1325.2,1325.1,0.1244235]
[1673332387989,42.73673104,1325.2,1325.1,0.12207532]
[1673332389403,39.35523189,1325.2,1325.1,0.12207532]
[1673332390456,42.73673104,1325.2,1325.1,0.12207532]
[1673332390664,43.10331001,1325.2,1325.1,0.12207532]
[1673332390826,46.48480916,1325.2,1325.1,0.12207532]
[1673332394529,47.05100916,1325.2,1325.1,0.12207532]
[1673332405158,43.30293104,1325.2,1325.1,0.12207532]
[1673332407449,47.05100916,1325.2,1325.1,0.12207532]
[1673332407869,43.30293104,1325.2,1325.1,0.12207532]
[1673332408318,42.5495741,1325.2,1325.1,0.12207532]
[1673332408529,43.30293104,1325.2,1325.1,0.12207532]
[1673332409471,47.05100916,1325.2,1325.1,0.12207532]
[1673332410917,43.30293104,1325.2,1325.1,0.12207532]
[1673332411280,47.05100916,1325.2,1325.1,0.12207532]
[1673332411592,43.30293104,1325.2,1325.1,0.12207532]
[1673332411814,47.05100916,1325.2,1325.1,0.11988657]
[1673332412026,43.30293104,1325.2,1325.1,0.11988657]
[1673332412195,47.05100916,1325.2,1325.1,0.11988657]
[1673332413193,43.30293104,1325.2,1325.1,0.11988657]
[1673332417691,39.92143189,1325.2,1325.1,0.11988657]
[1673332418636,43.3028743,1325.2,1325.1,0.11988657]
[1673332419554,47.05095242,1325.2,1325.1,0.11988657]
[1673332419783,43.3028743,1325.2,1325.1,0.11988657]
[1673332421861,47.05095242,1325.2,1325.1,0.11988657]
[1673332422074,43.3028743,1325.2,1325.1,0.11988657]
[1673332422434,59.33061879,1325.2,1325.1,0.10143913]
[1673332422608,60.08397573,1325.2,1325.1,0.10143913]
[1673332426083,59.33061879,1325.2,1325.1,0.10143913]
[1673332426496,60.08397573,1325.2,1325.1,0.10143913]
[1673332429787,60.0713505,1325.2,1325.1,0.10143913]
[1673332430011,56.12751001,1325.2,1325.1,0.10143913]
[1673332430235,60.78860786,1325.2,1325.1,0.05151098]
[1673332430381,56.12751001,1325.2,1325.1,0.05151098]
[1673332431806,60.06975312,1325.2,1325.1,0.05151098]
[1673332432410,59.50355312,1325.2,1325.1,0.01768359]
[1673332434309,61.21555312,1325.2,1325.1,0.01768359]
[1673332437748,71.27331001,1325.2,1325.1,0.00899345]
[1673332438022,71.83951001,1325.2,1325.1,0.00899345]
[1673332438610,75.77902894,1325.2,1325.1,0.00899345]
[1673332438853,71.83951001,1325.2,1325.1,0.00899345]
[1673332439072,75.77910187,1325.2,1325.1,0.00899345]
[1673332441026,75.77925777,1325.2,1325.1,0.00899345]
[1673332442528,2.5,1325.1,1325.0,0.15151872]
[1673332442691,39.37115548,1325.1,1325.0,0.15151872]
[1673332442898,43.52816777,1325.1,1325.0,0.15151872]
[1673332443158,43.5250837,1325.1,1325.0,0.15151872]
[1673332443373,40.1484242,1325.1,1325.0,0.15151872]
[1673332443688,39.39506726,1325.1,1325.0,0.15151872]
[1673332444059,42.77178,1325.1,1325.0,0.15151872]
[1673332444478,43.52513694,1325.1,1325.0,0.15151872]
[1673332444915,42.77178,1325.1,1325.0,0.15151872]
[1673332446377,42.77148039,1325.1,1325.0,0.15151872]
[1673332447428,39.39506726,1325.1,1325.0,0.15151872]
[1673332448173,42.77132939,1325.1,1325.0,0.15151872]
[1673332448595,39.39506726,1325.1,1325.0,0.15151872]
[1673332450090,42.77144519,1325.1,1325.0,0.15151872]
[1673332450438,42.77145449,1325.1,1325.0,0.15151872]
[1673332450958,39.39506726,1325.1,1325.0,0.15151872]
[1673332451164,42.77170419,1325.1,1325.0,0.15151872]
[1673332452527,42.77170419,1325.1,1325.0,0.12849229]
[1673332454100,39.39506726,1325.1,1325.0,0.12849229]
[1673332454313,42.77245758,1325.1,1325.0,0.12849229]
[1673332454542,39.39506726,1325.1,1325.0,0.12849229]
[1673332456315,42.77369941,1325.1,1325.0,0.12849229]
[1673332456635,39.39506726,1325.1,1325.0,0.12849229]
[1673332458693,41.10706726,1325.1,1325.0,0.12849229]
[1673332460527,45.04681502,1325.1,1325.0,0.12849229]
[1673332462585,45.04681502,1325.1,1325.0,0.10901553]
[1673332472677,45.04681502,1325.1,1325.0,0.09251552]
[1673332473336,50.29416511,1325.1,1324.9,0.85357479]
[1673332473545,38.57686359,1325.0,1324.9,0.85357479]
[1673332473771,49.1424991,1325.0,1324.9,0.85357479]